Cogmind - Beta 14 @@@ ROGUE MODE // 2025.03.16 @ 21:06:56 Player: Lava Result: Destroyed by G-47 Trooper with Particle Gun Performance ------------- Evolutions (0) 0 Regions Visited (2) 400 Robots Destroyed (31) 155 Value Destroyed (592) 592 Prototype IDs (2) 40 Alien Tech Used (0) 0 Bonus (0) 0 TOTAL SCORE: 1187 Bonus ------- None Cogmind --------- Core Integrity 0/250 Matter 296/300 Energy 123/125 System Corruption 0% Temperature Cool (32) Movement Treading (320) Ox2 Location -10/Mines Parts ------- > --- POWER (1) -------- Light Ion Engine > --- PROPULSION (2) --- Light Treads > --- UTILITY (2) ------ High-capacity Storage Unit Light Armor Plating > --- WEAPON (2) ------- Assault Rifle Light Assault Rifle > --- INVENTORY (20) --- Ion Engine Light Ion Engine Aluminum Leg Heat Sink Structural Scanner Structural Scanner Visual Processing Unit Signal Interpreter Transport Network Coupler Targeting Computer Targeting Computer Light Armor Plating Light Armor Plating Light Armor Plating Small Laser Light Assault Rifle Light Assault Rifle Grenade Launcher Grenade Launcher Mining Laser Peak State ------------ > --- POWER ------------ Ion Engine > --- PROPULSION ------- Light Treads Light Treads > --- UTILITY ---------- High-capacity Storage Unit Light Armor Plating > --- WEAPON ----------- EM Pulse Gun Small Laser > --- INVENTORY -------- Ion Engine Aluminum Leg Heat Sink Structural Scanner Structural Scanner Visual Processing Unit Signal Interpreter Transport Network Coupler Targeting Computer Targeting Computer Light Armor Plating Light Armor Plating Light Armor Plating Light Armor Plating Light Armor Plating Small Laser Assault Rifle Light Assault Rifle Grenade Launcher [Rating: 9] Favorites ----------- Power Ion Engine Engine Ion Engine Propulsion Light Treads Treads Light Treads Utility Light Armor Plating Storage High-capacity Storage Unit Protection Light Armor Plating Weapon Small Laser Energy Gun Small Laser Ballistic Gun Assault Rifle Build | -11 -10 -10 ------- Run | Yrd Mat Min Slots Evolved . | . . . Power . | . . . Propulsion . | . . . Utility . | . . . Weapon . | . . . Parts Attached 21 | 6 11 4 Power 5 | 1 3 1 Engine 5 | 1 3 1 Core . | . . . Reactor . | . . . Propulsion 5 | 2 3 . Treads 5 | 2 3 . Leg . | . . . Wheel . | . . . Hover . | . . . Flight . | . . . Utility 6 | 1 4 1 Device . | . . . Storage 2 | 1 1 . Processor . | . . . Hackware . | . . . Protection 4 | . 3 1 Artifact . | . . . Weapon 5 | 2 1 2 Energy Gun 3 | 2 1 . Energy Cannon . | . . . Ballistic Gun 2 | . . 2 Ballistic Cannon . | . . . Launcher . | . . . Special Weapon . | . . . Impact Weapon . | . . . Slashing Weapon . | . . . Piercing Weapon . | . . . Special Melee Weapon . | . . . Unidentified Prototypes . | . . . Parts Lost 8 | . 5 3 Power 2 | . 2 . Propulsion 2 | . 1 1 Utility 1 | . 1 . Weapon 3 | . 1 2 Highest Loss Streak 2 | . 2 2 To Critical Strikes . | . . . Average Slot Usage (%) 95 | . 95 96 Engine 12 | . 12 14 Treads 26 | . 25 27 Storage 14 | . 14 14 Protection 13 | . 13 14 Energy Gun 23 | . 27 . Ballistic Gun 4 | . . 24 Peak Build Rating 9 | 6 9 9 Average Rating 7 | 5 7 8 On Entrance 5 | . 6 9 Naked Turns . | . . . Heaviest Build 51 | 13 51 51 Greatest Support 40 | 40 40 40 Greatest Overweight (x) 2 | . 2 1 Average Overweight (x) . | . . 1 Largest Inventory Capacity 20 | 8 20 20 Average Capacity 17 | 7 17 20 Most Carried 20 | 5 20 20 Average Carried 13 | 3 12 19 Final Capacity 20 | 8 20 20 Final Carried 20 | 4 20 20 Class Distribution -------------------- 86% | Mutant 13% | Scavenger-Mutant Dominant Class ---------------- Mutant | -10/Materials Scavenger-Mutant | -10/Mines Resources | -11 -10 -10 ----------- Run | Yrd Mat Min Matter Collected 492 | 254 103 135 Remotely . | . . . Salvage Created 1025 | . 847 178 Parts 62 | . 47 15 Haulers Intercepted 2 | . 2 . Recyclers Shooed 5 | . 5 . Parts Field Recycled . | . . . Retrieved Matter . | . . . Parts Self-Destructed . | . . . Prevented . | . . . Kills | -11 -10 -10 ------- Run | Yrd Mat Min Combat Hostiles Destroyed 19 | . 11 8 Guns 19 | . 11 8 Classes Destroyed 9 | . 9 . Worker 1 | . 1 . Builder 1 | . 1 . Tunneler 1 | . 1 . Hauler 2 | . 2 . Recycler 3 | . 3 . Operator 2 | . 2 . Watcher 2 | . 2 . Swarmer 8 | . 3 5 Grunt 11 | . 8 3 Best Kill Streak 3 | . 3 3 Combat Bots Only 3 | . 3 3 Max Kills in Single Turn 2 | . 2 1 Gunslinging . | . . . Exploded . | . . . Melee . | . . . Uniques/NPCs Destroyed . | . . . Combat | -11 -10 -10 -------- Run | Yrd Mat Min Hostile Shots Fired 162 | . 113 49 Missed 35 | . 25 10 Damage Taken 1391 | . 991 400 Core 258 | . 218 40 Absorbed by Shields . | . . . Core Remaining (%) 100 | 100 . . Volleys Fired 123 | . 89 34 Largest 2 | . 2 2 Hottest 90 | . 90 80 Shots Fired 195 | . 145 50 Gun 195 | . 145 50 Cannon . | . . . Launcher . | . . . Special . | . . . Kinetic 47 | . . 47 Thermal 130 | . 129 1 Explosive . | . . . Electromagnetic 18 | . 16 2 Robot Hit Streak 9 | . 9 7 Robot Miss Streak 4 | . 4 4 Penetration Max . | . . . Secondary Targets 2 | . 1 1 Max Gunslinging Chain 1 | . 1 1 Shots Hit Robots 119 | . 91 28 Core Hits 50 | . 38 12 Critical Kills . | . . . Critical Parts Destroyed . | . . . Critical Strikes 6 | . 6 . Burn 6 | . 6 . Melee Attacks . | . . . Impact . | . . . Slashing . | . . . Piercing . | . . . Sneak Attacks . | . . . Combat Hostiles . | . . . Follow-up Attacks . | . . . Damage Inflicted 1574 | . 1226 348 Guns 1478 | . 1155 323 Cannons . | . . . Explosions . | . . . Melee . | . . . Ramming 96 | . 71 25 Kinetic 311 | . . 311 Thermal 1036 | . 1036 . Explosive . | . . . Electromagnetic 131 | . 119 12 Impact . | . . . Slashing . | . . . Piercing . | . . . Highest Corruption . | . . . Average Corruption . | . . . Corruption Purged . | . . . Corruption Blocked . | . . . Overload Shots . | . . . Overflow Damage . | . . . Projectiles . | . . . Explosions . | . . . Melee . | . . . Knockbacks 2 | . 2 . Impact 2 | . 2 . Kinetic . | . . . Secondary . | . . . Self-Inflicted Damage . | . . . Shots . | . . . Rammed 13 | . 11 2 Targets Rammed 15 | . 13 2 Kicked . | . . . Crushed 2 | . 2 . Highest Temperature 422 | . 422 40 Average Temperature 123 | . 135 14 Received Heat Transfer 621 | . 498 123 Effects 5 | . 5 . Energy Bleed 2 | . 2 . Interference 2 | . 2 . Short Circuit 1 | . 1 . Siege Activations . | . . . Robots Corrupted . | . . . Combat Hostiles . | . . . Parts Fried 2 | . 2 . Impact Corruptions . | . . . Robots Melted . | . . . Combat Hostiles . | . . . Parts Melted 4 | . 4 . Heat Transferred 3232 | . 3232 . Parts Sabotaged . | . . . Parts Stolen . | . . . Parts Stripped . | . . . Power Chain Reactions . | . . . Alert | -11 -10 -10 ------- Run | Yrd Mat Min Peak Influence 119 | . 119 110 Initial . | . . . Average 35 | . 29 72 Maximum Alert Level . | . . . Low Security (%) 100 | 100 100 100 Level 1 . | . . . Level 2 . | . . . Level 3 . | . . . Level 4 . | . . . Level 5 . | . . . High Security . | . . . Max Security . | . . . Squads Dispatched 2 | . 2 . Investigation . | . . . Extermination . | . . . Reinforcement 2 | . 2 . Assault . | . . . Garrison . | . . . Intercept . | . . . Searches Triggered . | . . . Construction Impeded . | . . . Haulers Reinforced . | . . . Active Scanning Responses . | . . . Cargo Convoy Interrupts . | . . . Stealth | -11 -10 -10 --------- Run | Yrd Mat Min Distress Signals . | . . . Communications Jammed . | . . . Distress Signals . | . . . Times Spotted 33 | . 23 10 Peak Tracking Total 4 | . 3 4 Tactical Retreats . | . . . Traps | -11 -10 -10 ------- Run | Yrd Mat Min Traps Triggered . | . . . Indirectly . | . . . Trap Hack Attempts . | . . . Triggered . | . . . Disarmed . | . . . Reprogrammed . | . . . Reused . | . . . Traps Extracted . | . . . Installed . | . . . Triggered . | . . . Machines | -11 -10 -10 ---------- Run | Yrd Mat Min Machines Disabled . | . . . Max in Single Turn . | . . . Machines Repaired . | . . . Machines Dismantled . | . . . Machines Sabotaged . | . . . Overloaded Fab Kills . | . . . Hacking | -11 -10 -10 --------- Run | Yrd Mat Min Machines Accessed 5 | . 5 . Terminals 5 | . 5 . Fabricators . | . . . Repair Stations . | . . . Recycling Units . | . . . Scanalyzers . | . . . Garrison Access . | . . . Total Hacks 16 | . 16 . Successful 6 | . 6 . Failed 10 | . 10 . Catastrophic 4 | . 4 . Database Lockouts . | . . . Manual . | . . . Terminals 16 | . 16 . Fabricators . | . . . Repair Stations . | . . . Recycling Units . | . . . Scanalyzers . | . . . Garrison Access . | . . . Terminal Hacks 6 | . 6 . Prototype ID Bank 1 | . 1 . Emergency Access Points 1 | . 1 . Transport Status 1 | . 1 . Reinforcement Status 1 | . 1 . Hauler Manifests 2 | . 2 . Fabricator Hacks . | . . . Repair Station Hacks . | . . . Recycling Unit Hacks . | . . . Scanalyzer . | . . . Garrison Access Hacks . | . . . Unauthorized Hacks . | . . . Terminals . | . . . Fabricators . | . . . Repair Stations . | . . . Recycling Units . | . . . Scanalyzers . | . . . Garrison Access . | . . . Data Cores Recovered . | . . . Used . | . . . Hacking Detections 5 | . 5 . Full Trace Events . | . . . Feedback Events . | . . . Feedback Blocked . | . . . Robot Schematics Acquired . | . . . Robots Built . | . . . Authchips . | . . . Time . | . . . Total Robot Build Rating . | . . . Part Schematics Acquired . | . . . Parts Built . | . . . Authchips . | . . . Time . | . . . Total Part Build Rating . | . . . Parts Repaired . | . . . Time . | . . . Parts Recycled . | . . . Recycled Matter . | . . . Retrieved Matter . | . . . Retrieved Components . | . . . Parts Scanalyzed . | . . . Part Schematics Acquired . | . . . Parts Damaged . | . . . Bothacking | -11 -10 -10 ------------ Run | Yrd Mat Min Used RIF Installer . | . . . Robots Hacked . | . . . Non-combat . | . . . Combat . | . . . Robot Hacks Applied . | . . . Relay Couplers Released . | . . . Fabnet Peak Effective % . | . . . Robots Rewired . | . . . Allies Hacked . | . . . Hacks Repelled . | . . . Allies | -11 -10 -10 -------- Run | Yrd Mat Min Total Allies . | . . . Largest Group . | . . . Highest-Rated Group . | . . . Highest-Rated Ally . | . . . Total Orders . | . . . Ally Attacks . | . . . Total Damage . | . . . Kills . | . . . Allies Corrupted . | . . . Allies Melted . | . . . Intel | -11 -10 -10 ------- Run | Yrd Mat Min Robot Analysis Total . | . . . Derelict Logs Recovered 1 | . . 1 Drone Launches . | . . . Drone Recoveries . | . . . Exploration | -11 -10 -10 ------------- Run | Yrd Mat Min Turns Passed 3299 | 116 2640 543 Spaces Moved 1250 | 72 994 184 Core 13 | 13 . . Treads 1237 | 59 994 184 Legs . | . . . Wheels . | . . . Hover . | . . . Flight . | . . . Fastest Speed 50 | 50 160 240 Average Speed 226 | 140 229 240 Slowest Speed 320 | 160 320 240 Overloaded Moves . | . . . Propulsion Burnouts . | . . . Robots Hopped . | . . . Cave-ins Triggered . | . . . Exploration Rate (%) 41 | 4 80 40 Regions Visited 2 Branch Regions 1 Pre-discovered Areas 1 | . . 1 Known Exits Taken . | . . . Unknown Exits Taken 2 | 1 1 . Scrap Searched . | . . . Spaces Dug . | . . . Terrain Destroyed . | . . . Melee . | . . . Projectile . | . . . AOE . | . . . Terrain Rammed . | . . . Walls Destroyed . | . . . Machines Disabled . | . . . Actions | -11 -10 -10 --------- Run | Yrd Mat Min Total 1518 | 87 1193 238 Wait 59 | . 49 10 Move 1248 | 71 993 184 Hop . | . . . Pick Up 41 | 10 29 2 Fast Attach 1 | . . 1 Attach 14 | 6 7 1 Detach 1 | . 1 . Swap 6 | . 4 2 Drop 10 | . 8 2 Fire 123 | . 89 34 Melee . | . . . Ram . | . . . Kick . | . . . Crush 15 | . 13 2 Escape Stasis . | . . . Rewire . | . . . Trap . | . . . Miscellaneous . | . . . Route ------- -11/Scrapyard -10/Materials (discovered 4 exits: [*Mat] / [*Min x2] / [*Sub]) -10/Mines History --------- Turn | Location | Event 41 | -11/Scrapyard | Discovered new exit (range 15) 117 | -11/Scrapyard | Entered Materials 308 | -10/Materials | Build established: Mutant 380 | -10/Materials | Discovered new exit (range 14) 604 | -10/Materials | Core integrity fell below 50% 1298 | -10/Materials | Core integrity fell below 20% 1999 | -10/Materials | Discovered new exit (range 11) 2116 | -10/Materials | Discovered new exit (range 6) 2429 | -10/Materials | Discovered new exit (range 10) 2757 | -10/Materials | Entered Mines 2819 | -10/Mines | Learned location of Zion (-6) 2964 | -10/Mines | YI-UF0 nonchalantly dropped a Grenade Launcher on the ground 3164 | -10/Mines | Build established: Scavenger-Mutant 3300 | -10/Mines | Destroyed by G-47 Trooper with Particle Gun Last Messages --------------- Acquired 27 matter. Acquired Lgt. Assault Rifle. Dropped Ion Engine. Acquired 13 matter. YI-UF0 nonchalantly drops a Grenade Launcher on the ground. Dropped Lgt. Armor Plating. Acquired Grenade Launcher. YI-UF0 mumbles something. Slammed into U-05 Engineer. T-07 Excavator is excavating. Slammed into K-01 Serf. G-34 Mercenary destroyed. G-47 Trooper destroyed. Acquired 50 matter. R-06 Scavenger collects Imp. Heat Sink. Acquired 4 matter. G-34 Mercenary destroyed. Acquired 4 matter. Lgt. Treads destroyed. Map ----- +----------------------------------------------------+ | ?????????????????????????????????????? | | ?????????????????????????????????????? | | ?????????????????????????????????????? | | ?????????????????????????????????????? | | ?????????????????????????????????????? | | ?????????????????????????????????????? | | ?????????????????????????????????????? | | ?????????????????????????????????????? | | ?????????????????????????????????????? | | ?????????????????????????????????????? | | ?????????????????????????????????????? | | ?????????????????????????????????????? | | ?????????????????????????????????????? | | ???????????????#??##?????????????????? | | ?????????????? ?? ?????????????????? | | ?????????????? "?? ?????????????????? | | ?????????????? "?" ?????????????????? | | ???????????""" "?" ?????????????????? | | ??????????? ? ??????##?????????? | | ????????????"" ??" ?????# ?????????? | | ????????????"" ??" ????? ?????????? | | ????????????"" ??" ????? ?????????? | | ???????????? ?? ????? ?????????? | | ????????????#[#??# #????? ?????????? | | ????????????#[#??# #????? #?????????? | | ????????????#@#### #?????# #?????????? | | ????????????#=g! ####### #?????????? | | ????????????###### #?????????? | | ?????????????????######### #?????????? | | ?????????????????????????# #?????????? | | ?????????????????????????# #?????????? | | ?????????????????????????# #########?? | | ?????????????????????????# #?? | | ?????????????????????????######## #?? | | ????????????##################### #?? | | ????????????# #?? | | ???????????## ############### ### #?? | | ??????????## ##???????????# #?# #?# | | ??????????# ##??????????# #?# #?# | | ??????????# ##????????## ### #?# | | ??????????# ######???# ## ### | | ??????????##### ## ##??## # ## | | ??????????????## ###?## # | | ???????????????## ##?# | | ????????????????# #?## | | ???????????????## ! #??##### | | ??????????????## #??????## | | ??????????????# #?????#### | | ??????????##### ##?????# | | ??????????# ## ####???#### ## | +----------------------------------------------------+ Best States ------------- Heat Dissipation 25 Energy Generation 10 Energy Capacity 250 Matter Stores 300 Matter Capacity 300 Sight Range 16 Terrain Scan Density 10 Armor Coverage 150 Evasion (%) 50 Recoil Reduction 2 Item Schematics ----------------- None Robot Schematics ------------------ None Fabricated ------------ Nothing Alien Tech Used ----------------- None Achievements -------------- None Challenges ------------ None Game ------ Seed MinesnifferGreatWheel Manual? 0 Play Time 00:15:44 Cumulative 17.4 hours Start 2025.03.16 @ 20:52:55 End 2025.03.16 @ 21:06:56 Sessions 1 Manual Loads 0 Difficulty Rogue Special Mode None Game No. 27 Rogue 27 Adventurer 0 Explorer 0 Win Type - Total 0 Types 0/0/0/0/0/0/0/0/0 Lore% 11 Gallery% 20 Achievement% 20 Wizard Run 0 Options --------- Layout 1 ASCII 0 Keyboard 0 Movement Mouse Keybinds 0 Fullscreen 1 Font 32/SmallcapsGlow Map View 50x40 Zoom Use 4% Tactical HUD 0 Map Filters NONE Filters NONE Steam 1 RUN: 5e2eaae9-18ae-4168-ac25-380da7682bcf